[Event "Chessheroes Superhero Challenge 2022"]
[Site "Randburg"]
[Date "2022.01.05"]
[Round "2.3"]
[White "Mabusela, Johannes Manyedi"]
[Black "Parodi, Alessandro"]
[Result "1-0"]
[ECO "A40"]
[WhiteElo "2216"]
[BlackElo "1997"]
[Annotator "NA"]
[PlyCount "98"]
[EventDate "2022.01.05"]
[EventType "tourn"]
[EventCountry "RSA"]
[SourceTitle "playchess.com"]
[Source "ChessBase"]
[SourceQuality "1"]
[TimeControl "5400+30"]

1. d4 {[%emt 0:00:03]} d6 {[%emt 0:00:10]} 2. Nf3 {[%emt 0:03:11]} g6 {[%emt 0:02:21]} 3. c4 {[%emt 0:01:40]} Bg7 {[%emt 0:00:36]} 4. e4 {[%emt 0:01:14]} Nc6 {[%emt 0:02:38]} 5. h3 {[%emt 0:05:01]} e5 {[%emt 0:00:43]} 6. d5 {[%emt 0:10:00]} Nd4 {[%emt 0:00:40]} 7. Be3 {[%emt 0:03:23]} c5 {[%emt 0:02:41]} 8. dxc6 {[%emt 0:00:12]} Qb6 {[%emt 0:00:39]} 9. cxb7 {[%emt 0:03:18]} Qxb7 {[%emt 0:00:32]} 10. Nc3 {[%emt 0:06:23]} Qxb2 {[%emt 0:00:56]} 11. Bxd4 {[%emt 0:01:13]} exd4 {[%emt 0:00:23]} 12. Nd5 {[%emt 0:00:08]} Rb8 {[%emt 0:05:25]} 13. Bd3 {[%emt 0:03:31]} Rb7 {[%emt 0:02:39]} 14. O-O {[%emt 0:02:38]} Ne7 {[%emt 0:03:27]} 15. Qa4+ {[%emt 0:06:46]} Bd7 {[%emt 0:05:07]} 16. Qa6 {[%emt 0:00:27]} Nxd5 {[%emt 0:00:36]} 17. cxd5 {[%emt 0:15:12]} Qb6 {[%emt 0:00:26]} 18. Rab1 {[%emt 0:05:16]} Qxa6 {[%emt 0:00:08]} 19. Bxa6 {[%emt 0:00:01]} Rc7 {[%emt 0:02:10]} 20. Rfd1 {[%emt 0:02:06]} O-O {[%emt 0:04:52]} 21. Nxd4 {[%emt 0:00:20]} f5 {[%emt 0:00:15]} 22. Ne6 {[%emt 0:07:42]} Bxe6 {[%emt 0:00:32]} 23. dxe6 {[%emt 0:00:02]} Be5 {[%emt 0:01:01]} 24. exf5 {[%emt 0:00:51]} Rxf5 {[%emt 0:00:55]} 25. Rb7 {[%emt 0:01:27]} Rxb7 {[%emt 0:01:36]} 26. Bxb7 {[%emt 0:00:02]} Rf8 {[%emt 0:07:31]} 27. Bc6 {[%emt 0:00:38]} Bf6 {[%emt 0:00:55]} 28. Rb1 {[%emt 0:09:48]} Rc8 {[%emt 0:05:11]} 29. Bd5 {[%emt 0:00:17]} Kf8 {[%emt 0:02:05]} 30. Rb7 {[%emt 0:00:27]} Be7 {[%emt 0:01:00]} 31. Rxa7 {[%emt 0:00:15]} Rc5 {[%emt 0:00:47]} 32. Bb3 {[%emt 0:00:33]} g5 {[%emt 0:02:11]} 33. g3 {[%emt 0:12:55]} h5 {[%emt 0:00:17]} 34. Kg2 {[%emt 0:00:00]} Rc3 {[%emt 0:00:32]} 35. Ra5 {[%emt 0:00:00]} Rc5 {[%emt 0:01:40]} 36. Rxc5 {[%emt 0:00:00]} dxc5 {[%emt 0:00:01]} 37. Kf3 {[%emt 0:00:00]} Ke8 {[%emt 0:00:36]} 38. Ke4 {[%emt 0:00:00]} Kd8 {[%emt 0:45:16]} 39. Kd5 {[%emt 0:00:00]} Kc7 {[%emt 0:00:00]} 40. Bd1 {[%emt 0:00:00]} c4 {[%emt 0:00:00]} 41. Bxh5 {[%emt 0:00:00]} c3 {[%emt 0:00:00]} 42. Bd1 {[%emt 0:00:00]} Bf6 {[%emt 0:00:00]} 43. f4 {[%emt 0:00:00]} gxf4 {[%emt 0:00:00]} 44. gxf4 {[%emt 0:00:00]} Bh4 {[%emt 0:00:00]} 45. f5 {[%emt 0:00:00]} Bf6 {[%emt 0:00:00]} 46. Ba4 {[%emt 0:00:00]} Bh4 {[%emt 0:00:00]} 47. Ke5 {[%emt 0:00:00]} Bg3+ {[%emt 0:00:00]} 48. Kf6 {[%emt 0:00:00]} Kd6 {[%emt 0:00:00]} 49. Kf7 {[%emt 0:00:00]} Kd5 {[%emt 0:05:30]} 1-0

[Event "Chessheroes Superhero Challenge 2022"]
[Site "Randburg"]
[Date "2022.01.05"]
[Round "2.4"]
[White "Lekgau, Mothupi"]
[Black "Du Plessis, Heinco"]
[Result "0-1"]
[ECO "A56"]
[WhiteElo "1940"]
[BlackElo "2003"]
[Annotator "NA"]
[PlyCount "130"]
[EventDate "2022.01.05"]
[EventType "tourn"]
[EventCountry "RSA"]
[SourceTitle "playchess.com"]
[Source "ChessBase"]
[SourceQuality "1"]
[TimeControl "5400+30"]

1. d4 {[%emt 0:00:06]} Nf6 {[%emt 0:00:09]} 2. c4 {[%emt 0:00:26]} c5 {[%emt 0:00:06]} 3. d5 {[%emt 0:00:05]} e5 {[%emt 0:00:19]} 4. Nc3 {[%emt 0:01:54]} d6 {[%emt 0:00:08]} 5. e4 {[%emt 0:00:20]} Be7 {[%emt 0:00:01]} 6. Bd3 {[%emt 0:00:15]} Nbd7 {[%emt 0:00:29]} 7. Nge2 {[%emt 0:01:21]} Nf8 {[%emt 0:02:10]} 8. O-O {[%emt 0:00:54]} Ng6 {[%emt 0:01:20]} 9. Ng3 {[%emt 0:02:15]} O-O {[%emt 0:10:19]} 10. a3 {[%emt 0:06:06]} Re8 {[%emt 0:04:42]} 11. b4 {[%emt 0:00:36]} b6 {[%emt 0:00:20]} 12. Nce2 {[%emt 0:01:36]} Nd7 {[%emt 0:05:37]} 13. Nf5 {[%emt 0:07:59]} Ndf8 {[%emt 0:04:27]} 14. Neg3 {[%emt 0:02:12]} Bf6 {[%emt 0:03:12]} 15. Rb1 {[%emt 0:02:45]} Nf4 {[%emt 0:01:29]} 16. Bc2 {[%emt 0:05:28]} g6 {[%emt 0:16:32]} 17. Ne3 {[%emt 0:07:50]} h5 {[%emt 0:01:25]} 18. Ba4 {[%emt 0:04:38]} Bd7 {[%emt 0:02:07]} 19. Bxd7 {[%emt 0:00:08]} Qxd7 {[%emt 0:00:17]} 20. Ne2 {[%emt 0:01:24]} Rac8 {[%emt 0:01:22]} 21. g3 {[%emt 0:03:28]} Nh3+ {[%emt 0:03:37]} 22. Kh1 {[%emt 0:00:28]} h4 {[%emt 0:03:10]} 23. Ng1 {[%emt 0:01:42]} Nh7 {[%emt 0:03:54]} 24. Qg4 {[%emt 0:05:17]} Qxg4 {[%emt 0:00:57]} 25. Nxg4 {[%emt 0:00:05]} Nxg1 {[%emt 0:02:04]} 26. Kxg1 {[%emt 0:00:22]} Bg7 {[%emt 0:02:04]} 27. gxh4 {[%emt 0:02:59]} f5 {[%emt 0:02:06]} 28. exf5 {[%emt 0:00:30]} gxf5 {[%emt 0:00:02]} 29. Nh6+ {[%emt 0:01:50]} Bxh6 {[%emt 0:00:03]} 30. Bxh6 {[%emt 0:00:05]} f4 {[%emt 0:00:31]} 31. f3 {[%emt 0:00:46]} Kf7 {[%emt 0:01:24]} 32. Kf2 {[%emt 0:00:20]} cxb4 {[%emt 0:03:49]} 33. Rxb4 {[%emt 0:03:18]} Rg8 {[%emt 0:03:55]} 34. Rg1 {[%emt 0:10:21]} Rxg1 {[%emt 0:02:45]} 35. Kxg1 {[%emt 0:00:06]} Nf6 {[%emt 0:10:40]} 36. a4 {[%emt 0:02:02]} Rc5 {[%emt 0:02:51]} 37. Bg5 {[%emt 0:01:11]} Nh5 {[%emt 0:00:57]} 38. Kg2 {[%emt 0:00:59]} Ng7 {[%emt 0:01:03]} 39. h5 {[%emt 0:02:38]} Nf5 {[%emt 0:00:11]} 40. h6 {[%emt 0:00:39]} Rxc4 {[%emt 0:04:54]} 41. Rb2 {[%emt 0:01:29]} Rxa4 {[%emt 0:00:43]} 42. Kh3 {[%emt 0:00:13]} Rc4 {[%emt 0:00:34]} 43. Kg4 {[%emt 0:01:25]} Kg6 {[%emt 0:00:14]} 44. h4 {[%emt 0:00:13]} Ne3+ {[%emt 0:01:32]} 45. Kh3 {[%emt 0:00:04]} Rc1 {[%emt 0:00:18]} 46. h5+ {[%emt 0:00:56]} Kxg5 {[%emt 0:00:17]} 47. h7 {[%emt 0:00:02]} Rc8 {[%emt 0:00:45]} 48. Ra2 {[%emt 0:00:09]} a5 {[%emt 0:00:29]} 49. Rb2 {[%emt 0:00:03]} Rh8 {[%emt 0:00:25]} 50. Rxb6 {[%emt 0:00:13]} Rxh7 {[%emt 0:00:05]} 51. Kh2 {[%emt 0:00:02]} Rxh5+ {[%emt 0:00:29]} 52. Kg1 {[%emt 0:00:02]} Rh6 {[%emt 0:00:19]} 53. Ra6 {[%emt 0:00:09]} Nxd5 {[%emt 0:00:07]} 54. Rxa5 {[%emt 0:00:03]} Ne3 {[%emt 0:00:46]} 55. Kf2 {[%emt 0:00:17]} Rh2+ {[%emt 0:00:07]} 56. Ke1 {[%emt 0:00:02]} Rh1+ {[%emt 0:00:13]} 57. Kf2 {[%emt 0:00:10]} Rf1+ {[%emt 0:04:09]} 58. Ke2 {[%emt 0:26:34]} Rb1 {[%emt 0:00:00]} 59. Ra8 {[%emt 0:00:00]} Nf5 {[%emt 0:00:00]} 60. Rg8+ {[%emt 0:00:00]} Kf6 {[%emt 0:00:00]} 61. Rf8+ {[%emt 0:00:00]} Ke6 {[%emt 0:00:00]} 62. Re8+ {[%emt 0:00:00]} Kd5 {[%emt 0:00:00]} 63. Ra8 {[%emt 0:00:00]} Rb2+ {[%emt 0:00:00]} 64. Ke1 {[%emt 0:00:00]} Nd4 {[%emt 0:00:00]} 65. Kf1 {[%emt 0:00:00]} Nxf3 {[%emt 0:00:00]} 0-1

[Event "Chessheroes Superhero Challenge 2022"]
[Site "Randburg"]
[Date "2022.01.05"]
[Round "3.1"]
[White "February, Jesse Nikki"]
[Black "Hercules, Benjamin Vincent"]
[Result "0-1"]
[ECO "B32"]
[WhiteElo "1845"]
[BlackElo "2101"]
[Annotator "NA"]
[PlyCount "68"]
[EventDate "2022.01.05"]
[EventType "tourn"]
[EventCountry "RSA"]
[SourceTitle "playchess.com"]
[Source "ChessBase"]
[SourceQuality "1"]
[TimeControl "5400+30"]

1. e4 {[%emt 0:00:03]} c5 {[%emt 0:03:28]} 2. Nf3 {[%emt 0:00:14]} Nc6 {[%emt 0:00:05]} 3. d4 {[%emt 0:00:16]} cxd4 {[%emt 0:00:04]} 4. Nxd4 {[%emt 0:00:16]} e5 {[%emt 0:02:11]} 5. Ne2 {[%emt 0:00:14]} Bc5 {[%emt 0:01:49]} 6. Nbc3 {[%emt 0:05:29]} Qb6 {[%emt 0:04:25]} 7. Be3 {[%emt 0:00:21]} Bxe3 {[%emt 0:03:49]} 8. fxe3 {[%emt 0:02:09]} Nf6 {[%emt 0:06:07]} 9. Nd5 {[%emt 0:03:18]} Nxd5 {[%emt 0:02:00]} 10. exd5 {[%emt 0:00:23]} Ne7 {[%emt 0:00:19]} 11. e4 {[%emt 0:04:30]} Qxb2 {[%emt 0:02:56]} 12. Rb1 {[%emt 0:01:34]} Qxa2 {[%emt 0:15:52]} 13. Nc3 {[%emt 0:00:55]} Qa5 {[%emt 0:00:04]} 14. Qd2 {[%emt 0:02:06]} a6 {[%emt 0:07:03]} 15. Be2 {[%emt 0:05:11]} d6 {[%emt 0:00:41]} 16. O-O {[%emt 0:02:07]} b5 {[%emt 0:11:44]} 17. Ra1 {[%emt 0:04:39]} Qb6+ {[%emt 0:00:15]} 18. Kh1 {[%emt 0:00:10]} Bd7 {[%emt 0:02:40]} 19. Qg5 {[%emt 0:02:23]} Ng6 {[%emt 0:02:24]} 20. Qg3 {[%emt 0:09:58]} b4 {[%emt 0:02:07]} 21. Na4 {[%emt 0:01:42]} Bxa4 {[%emt 0:02:38]} 22. Rxa4 {[%emt 0:00:09]} O-O {[%emt 0:01:03]} 23. h4 {[%emt 0:07:48]} Ne7 {[%emt 0:10:35]} 24. h5 {[%emt 0:02:45]} h6 {[%emt 0:03:54]} 25. Rf6 {[%emt 0:04:55]} Kh7 {[%emt 0:00:30]} 26. Qxe5 {[%emt 0:04:01]} gxf6 {[%emt 0:02:09]} 27. Qxe7 {[%emt 0:00:10]} Qd8 {[%emt 0:01:59]} 28. Qb7 {[%emt 0:00:06]} f5 {[%emt 0:01:42]} 29. Qxb4 {[%emt 0:00:15]} Qh4+ {[%emt 0:01:25]} 30. Kg1 {[%emt 0:00:13]} Rab8 {[%emt 0:01:44]} 31. Qd2 {[%emt 0:03:18]} Rb1+ {[%emt 0:00:30]} 32. Bf1 {[%emt 0:00:08]} Re8 {[%emt 0:02:25]} 33. Rxa6 {[%emt 0:03:51]} Rxe4 {[%emt 0:00:34]} 34. Rxd6 {[%emt 0:00:44]} Rf4 {[%emt 0:01:10]} 0-1

[Event "Chessheroes Superhero Challenge 2022"]
[Site "Randburg"]
[Date "2022.01.05"]
[Round "3.2"]
[White "Du Plessis, Heinco"]
[Black "Klaver, Cornelis"]
[Result "1/2-1/2"]
[ECO "A23"]
[WhiteElo "2003"]
[BlackElo "2050"]
[Annotator "NA"]
[PlyCount "76"]
[EventDate "2022.01.05"]
[EventType "tourn"]
[EventCountry "RSA"]
[SourceTitle "playchess.com"]
[Source "ChessBase"]
[SourceQuality "1"]
[TimeControl "5400+30"]

1. c4 {[%emt 0:00:11]} Nf6 {[%emt 0:03:04]} 2. Nc3 {[%emt 0:00:14]} e5 {[%emt 0:03:54]} 3. g3 {[%emt 0:00:57]} Bc5 {[%emt 0:01:40]} 4. Bg2 {[%emt 0:00:09]} c6 {[%emt 0:00:03]} 5. e3 {[%emt 0:00:05]} O-O {[%emt 0:00:04]} 6. Nge2 {[%emt 0:00:06]} d5 {[%emt 0:00:29]} 7. cxd5 {[%emt 0:00:08]} Nxd5 {[%emt 0:02:23]} 8. d4 {[%emt 0:00:30]} exd4 {[%emt 0:00:27]} 9. Nxd5 {[%emt 0:00:05]} cxd5 {[%emt 0:00:06]} 10. exd4 {[%emt 0:00:04]} Bb6 {[%emt 0:06:33]} 11. Nc3 {[%emt 0:00:06]} Nc6 {[%emt 0:03:10]} 12. Be3 {[%emt 0:03:06]} Be6 {[%emt 0:00:22]} 13. O-O {[%emt 0:00:07]} Qd7 {[%emt 0:09:51]} 14. Na4 {[%emt 0:00:14]} Rfd8 {[%emt 0:00:05]} 15. Nxb6 {[%emt 0:00:43]} axb6 {[%emt 0:00:05]} 16. Qb3 {[%emt 0:00:22]} Ra6 {[%emt 0:00:07]} 17. Rfc1 {[%emt 0:00:01]} Na5 {[%emt 0:00:30]} 18. Qc3 {[%emt 0:14:08]} Nc4 {[%emt 0:14:00]} 19. b3 {[%emt 0:24:58]} Na3 {[%emt 0:16:09]} 20. Bf1 {[%emt 0:02:57]} b5 {[%emt 0:00:20]} 21. Qc7 {[%emt 0:18:53]} Rc6 {[%emt 0:16:31]} 22. Qxd7 {[%emt 0:09:48]} Bxd7 {[%emt 0:00:19]} 23. Rxc6 {[%emt 0:01:10]} bxc6 {[%emt 0:01:11]} 24. Bd3 {[%emt 0:00:14]} f6 {[%emt 0:01:43]} 25. Bd2 {[%emt 0:01:55]} Kf7 {[%emt 0:15:55]} 26. Bb4 {[%emt 0:00:09]} Ra8 {[%emt 0:00:02]} 27. Re1 {[%emt 0:00:39]} Be6 {[%emt 0:00:05]} 28. f4 {[%emt 0:03:42]} g6 {[%emt 0:01:25]} 29. Kf2 {[%emt 0:04:18]} Ra7 {[%emt 0:00:29]} 30. Ke3 {[%emt 0:00:40]} h5 {[%emt 0:02:27]} 31. h4 {[%emt 0:05:12]} f5 {[%emt 0:01:42]} 32. Kd2 {[%emt 0:02:18]} Nc4+ {[%emt 0:00:12]} 33. bxc4 {[%emt 0:00:05]} Rxa2+ {[%emt 0:00:01]} 34. Bc2 {[%emt 0:00:23]} dxc4 {[%emt 0:00:20]} 35. Bc3 {[%emt 0:01:09]} Ke7 {[%emt 0:01:04]} 36. Ra1 {[%emt 0:00:27]} Rxa1 {[%emt 0:00:04]} 37. Bxa1 {[%emt 0:00:02]} b4 {[%emt 0:00:05]} 38. Ke3 {[%emt 0:06:10]} Kd6 {[%emt 0:02:33]} 1/2-1/2

[Event "Chessheroes Superhero Challenge 2022"]
[Site "Randburg"]
[Date "2022.01.05"]
[Round "3.3"]
[White "Parodi, Alessandro"]
[Black "Lekgau, Mothupi"]
[Result "1/2-1/2"]
[ECO "E11"]
[WhiteElo "1997"]
[BlackElo "1940"]
[Annotator "NA"]
[PlyCount "174"]
[EventDate "2022.01.05"]
[EventType "tourn"]
[EventCountry "RSA"]
[SourceTitle "playchess.com"]
[Source "ChessBase"]
[SourceQuality "1"]
[TimeControl "5400+30"]

1. d4 {[%emt 0:00:08]} d5 {[%emt 0:00:29]} 2. c4 {[%emt 0:00:09]} e6 {[%emt 0:00:08]} 3. Nf3 {[%emt 0:00:19]} Nf6 {[%emt 0:00:06]} 4. g3 {[%emt 0:00:07]} Bb4+ {[%emt 0:00:52]} 5. Bd2 {[%emt 0:00:30]} Bxd2+ {[%emt 0:00:13]} 6. Nbxd2 {[%emt 0:00:15]} Ne4 {[%emt 0:04:33]} 7. Bg2 {[%emt 0:00:48]} O-O {[%emt 0:00:21]} 8. O-O {[%emt 0:00:45]} c6 {[%emt 0:00:57]} 9. Qc2 {[%emt 0:00:28]} f5 {[%emt 0:00:18]} 10. Ne5 {[%emt 0:00:49]} Nd7 {[%emt 0:01:31]} 11. f3 {[%emt 0:00:55]} Nxe5 {[%emt 0:00:27]} 12. fxe4 {[%emt 0:08:25]} Ng4 {[%emt 0:01:04]} 13. exd5 {[%emt 0:00:12]} Ne3 {[%emt 0:00:52]} 14. Qb3 {[%emt 0:00:19]} Nxf1 {[%emt 0:00:13]} 15. Rxf1 {[%emt 0:00:43]} cxd5 {[%emt 0:02:48]} 16. cxd5 {[%emt 0:00:20]} Qb6 {[%emt 0:00:44]} 17. e3 {[%emt 0:04:39]} Bd7 {[%emt 0:03:25]} 18. Nc4 {[%emt 0:02:09]} Qxb3 {[%emt 0:09:37]} 19. axb3 {[%emt 0:00:02]} Rac8 {[%emt 0:03:31]} 20. Nd6 {[%emt 0:02:51]} Rc2 {[%emt 0:01:02]} 21. Nxb7 {[%emt 0:00:45]} exd5 {[%emt 0:04:14]} 22. Bxd5+ {[%emt 0:01:28]} Kh8 {[%emt 0:00:23]} 23. Nd6 {[%emt 0:03:44]} g6 {[%emt 0:01:08]} 24. Ra1 {[%emt 0:03:09]} Bc6 {[%emt 0:00:40]} 25. Bxc6 {[%emt 0:03:30]} Rxc6 {[%emt 0:00:08]} 26. Nc4 {[%emt 0:00:27]} Rc7 {[%emt 0:00:13]} 27. Kf2 {[%emt 0:00:48]} Rb8 {[%emt 0:01:00]} 28. Ra3 {[%emt 0:01:39]} a5 {[%emt 0:02:16]} 29. h4 {[%emt 0:05:57]} a4 {[%emt 0:00:46]} 30. Rxa4 {[%emt 0:00:05]} Rxb3 {[%emt 0:00:07]} 31. Kf3 {[%emt 0:00:22]} Kg7 {[%emt 0:01:07]} 32. Kf4 {[%emt 0:04:52]} Rb5 {[%emt 0:01:49]} 33. h5 {[%emt 0:01:35]} Re7 {[%emt 0:00:57]} 34. hxg6 {[%emt 0:01:01]} hxg6 {[%emt 0:00:18]} 35. Ne5 {[%emt 0:03:05]} Kf6 {[%emt 0:05:32]} 36. Ra6+ {[%emt 0:05:27]} Re6 {[%emt 0:00:05]} 37. Rxe6+ {[%emt 0:09:05]} Kxe6 {[%emt 0:00:31]} 38. Nxg6 {[%emt 0:01:06]} Rxb2 {[%emt 0:00:24]} 39. Nh4 {[%emt 0:02:43]} Kf6 {[%emt 0:00:43]} 40. g4 {[%emt 0:00:39]} fxg4 {[%emt 0:00:57]} 41. Kxg4 {[%emt 0:00:09]} Ke6 {[%emt 0:00:15]} 42. Kf4 {[%emt 0:00:38]} Kd5 {[%emt 0:00:28]} 43. Nf3 {[%emt 0:01:46]} Re2 {[%emt 0:00:27]} 44. Ng5 {[%emt 0:03:36]} Rf2+ {[%emt 0:01:21]} 45. Nf3 {[%emt 0:01:01]} Re2 {[%emt 0:00:12]} 46. Ng5 {[%emt 0:16:54]} Rf2+ {[%emt 0:01:16]} 47. Kg4 {[%emt 0:04:28]} Rg2+ {[%emt 0:00:46]} 48. Kf4 {[%emt 0:00:05]} Rf2+ {[%emt 0:00:07]} 49. Kg3 {[%emt 0:00:16]} Rf6 {[%emt 0:01:44]} 50. Kg4 {[%emt 0:00:35]} Rf2 {[%emt 0:00:17]} 51. Kg3 {[%emt 0:05:35]} Rf6 {[%emt 0:01:47]} 52. Kg4 {[%emt 0:01:52]} Ra6 {[%emt 0:01:13]} 53. Kf5 {[%emt 0:00:56]} Ra8 {[%emt 0:00:33]} 54. Ne4 {[%emt 0:00:18]} Ra5 {[%emt 0:00:56]} 55. Ng5 {[%emt 0:02:40]} Ra1 {[%emt 0:01:05]} 56. Nf3 {[%emt 0:00:12]} Kd6 {[%emt 0:01:06]} 57. e4 {[%emt 0:00:20]} Rf1 {[%emt 0:00:14]} 58. Kf4 {[%emt 0:00:01]} Ra1 {[%emt 0:00:37]} 59. Nh4 {[%emt 0:00:59]} Rf1+ {[%emt 0:00:16]} 60. Nf3 {[%emt 0:00:14]} Ra1 {[%emt 0:00:12]} 61. Nh4 {[%emt 0:02:05]} Rf1+ {[%emt 0:00:06]} 62. Kg5 {[%emt 0:00:00]} Re1 {[%emt 0:00:42]} 63. Nf5+ {[%emt 0:00:22]} Ke6 {[%emt 0:00:12]} 64. Kf4 {[%emt 0:00:00]} Rf1+ {[%emt 0:00:18]} 65. Kg4 {[%emt 0:00:01]} Rg1+ {[%emt 0:00:38]} 66. Ng3 {[%emt 0:00:01]} Rd1 {[%emt 0:00:25]} 67. Ne2 {[%emt 0:00:06]} Rd2 {[%emt 0:01:22]} 68. Kf3 {[%emt 0:00:34]} Rd3+ {[%emt 0:00:33]} 69. Kf4 {[%emt 0:00:10]} Rd1 {[%emt 0:00:30]} 70. Ke3 {[%emt 0:00:13]} Re1 {[%emt 0:00:16]} 71. Kd2 {[%emt 0:00:07]} Rf1 {[%emt 0:00:21]} 72. Nc1 {[%emt 0:00:18]} Rf4 {[%emt 0:00:35]} 73. Ke3 {[%emt 0:00:14]} Rh4 {[%emt 0:00:31]} 74. d5+ {[%emt 0:00:19]} Kd6 {[%emt 0:00:30]} 75. Nd3 {[%emt 0:00:12]} Rh5 {[%emt 0:00:40]} 76. Kd4 {[%emt 0:00:03]} Rh4 {[%emt 0:00:21]} 77. Ne5 {[%emt 0:00:29]} Rh1 {[%emt 0:01:11]} 78. Nc4+ {[%emt 0:00:05]} Ke7 {[%emt 0:00:02]} 79. e5 {[%emt 0:00:08]} Rd1+ {[%emt 0:00:16]} 80. Kc5 {[%emt 0:00:04]} Rc1 {[%emt 0:00:11]} 81. Kd4 {[%emt 0:00:07]} Rd1+ {[%emt 0:00:05]} 82. Ke4 {[%emt 0:00:02]} Rh1 {[%emt 0:00:31]} 83. Ne3 {[%emt 0:00:22]} Rh4+ {[%emt 0:00:07]} 84. Kf5 {[%emt 0:00:17]} Rd4 {[%emt 0:00:14]} 85. Kg5 {[%emt 0:00:35]} Re4 {[%emt 0:00:09]} 86. Ng4 {[%emt 0:00:02]} Rxe5+ {[%emt 0:00:07]} 87. Nxe5 {[%emt 0:00:30]} Kd6 {[%emt 0:01:25]} 1/2-1/2

[Event "Chessheroes Superhero Challenge 2022"]
[Site "Randburg"]
[Date "2022.01.05"]
[Round "3.4"]
[White "Mazibuko, Khanya"]
[Black "Mabusela, Johannes Manyedi"]
[Result "1/2-1/2"]
[ECO "B12"]
[WhiteElo "1940"]
[BlackElo "2216"]
[Annotator "NA"]
[PlyCount "88"]
[EventDate "2022.01.05"]
[EventType "tourn"]
[EventCountry "RSA"]
[SourceTitle "playchess.com"]
[Source "ChessBase"]
[SourceQuality "1"]
[TimeControl "5400+30"]

1. e4 {[%emt 0:00:03]} c6 {[%emt 0:00:11]} 2. d4 {[%emt 0:00:50]} d5 {[%emt 0:00:06]} 3. e5 {[%emt 0:00:11]} Bf5 {[%emt 0:00:10]} 4. Ne2 {[%emt 0:00:10]} e6 {[%emt 0:02:35]} 5. Ng3 {[%emt 0:01:00]} Bg6 {[%emt 0:00:40]} 6. h4 {[%emt 0:00:09]} h5 {[%emt 0:03:46]} 7. Be2 {[%emt 0:01:43]} c5 {[%emt 0:02:01]} 8. c3 {[%emt 0:06:12]} Nc6 {[%emt 0:00:05]} 9. Be3 {[%emt 0:00:06]} Qb6 {[%emt 0:05:31]} 10. b3 {[%emt 0:00:08]} cxd4 {[%emt 0:01:19]} 11. cxd4 {[%emt 0:00:01]} Nge7 {[%emt 0:01:10]} 12. O-O {[%emt 0:00:18]} Nf5 {[%emt 0:00:29]} 13. Nxf5 {[%emt 0:00:42]} Bxf5 {[%emt 0:00:06]} 14. a3 {[%emt 0:02:00]} Be7 {[%emt 0:07:47]} 15. g3 {[%emt 0:00:18]} Rc8 {[%emt 0:18:34]} 16. b4 {[%emt 0:00:12]} g6 {[%emt 0:07:16]} 17. Nc3 {[%emt 0:00:26]} f6 {[%emt 0:01:24]} 18. Na4 {[%emt 0:02:56]} Qd8 {[%emt 0:00:25]} 19. Rc1 {[%emt 0:03:14]} fxe5 {[%emt 0:04:16]} 20. dxe5 {[%emt 0:00:02]} d4 {[%emt 0:04:22]} 21. Bf4 {[%emt 0:00:01]} d3 {[%emt 0:00:47]} 22. Bf3 {[%emt 0:00:01]} Nd4 {[%emt 0:02:28]} 23. Bxb7 {[%emt 0:03:49]} Ne2+ {[%emt 0:11:29]} 24. Kh2 {[%emt 0:02:14]} Nxc1 {[%emt 0:01:46]} 25. Bxc8 {[%emt 0:00:34]} Ne2 {[%emt 0:00:11]} 26. Bb7 {[%emt 0:00:15]} Nxf4 {[%emt 0:00:29]} 27. Bc6+ {[%emt 0:00:01]} Kf7 {[%emt 0:01:54]} 28. gxf4 {[%emt 0:00:04]} Bf8 {[%emt 0:02:17]} 29. Kg3 {[%emt 0:00:50]} Bh6 {[%emt 0:00:32]} 30. Qd2 {[%emt 0:00:00]} Kg7 {[%emt 0:03:00]} 31. Qe3 {[%emt 0:01:06]} Rf8 {[%emt 0:00:28]} 32. Nc5 {[%emt 0:00:22]} Qe7 {[%emt 0:07:26]} 33. Nd7 {[%emt 0:01:39]} Rd8 {[%emt 0:00:49]} 34. Nf6 {[%emt 0:00:21]} Kf8 {[%emt 0:05:34]} 35. Be4 {[%emt 0:00:41]} Bg7 {[%emt 0:01:08]} 36. Bxf5 {[%emt 0:00:16]} exf5 {[%emt 0:01:01]} 37. Nh7+ {[%emt 0:00:01]} Kg8 {[%emt 0:00:15]} 38. Ng5 {[%emt 0:00:00]} Bh6 {[%emt 0:00:47]} 39. Rd1 {[%emt 0:00:02]} Bxg5 {[%emt 0:00:26]} 40. fxg5 {[%emt 0:00:05]} Qd7 {[%emt 0:00:25]} 41. f4 {[%emt 0:00:30]} Kf7 {[%emt 0:01:47]} 42. Rd2 {[%emt 0:00:01]} Ke6 {[%emt 0:02:49]} 43. Kf2 {[%emt 0:00:16]} Qd4 {[%emt 0:00:41]} 44. Qxd4 {[%emt 0:01:53]} Rxd4 {[%emt 0:01:48]} 1/2-1/2

[Event "Chessheroes Superhero Challenge 2022"]
[Site "Randburg"]
[Date "2022.01.05"]
[Round "4.1"]
[White "Mabusela, Johannes Manyedi"]
[Black "February, Jesse Nikki"]
[Result "1-0"]
[ECO "D41"]
[WhiteElo "2216"]
[BlackElo "1845"]
[Annotator "NA"]
[PlyCount "57"]
[EventDate "2022.01.05"]
[EventType "tourn"]
[EventCountry "RSA"]
[SourceTitle "playchess.com"]
[Source "ChessBase"]
[SourceQuality "1"]
[TimeControl "5400+30"]

1. d4 {[%emt 0:00:04]} d5 {[%emt 0:00:09]} 2. c4 {[%emt 0:00:06]} e6 {[%emt 0:00:07]} 3. Nc3 {[%emt 0:00:05]} Nf6 {[%emt 0:00:10]} 4. cxd5 {[%emt 0:00:09]} Nxd5 {[%emt 0:00:12]} 5. e4 {[%emt 0:01:46]} Nxc3 {[%emt 0:00:28]} 6. bxc3 {[%emt 0:00:02]} c5 {[%emt 0:00:24]} 7. Nf3 {[%emt 0:00:28]} cxd4 {[%emt 0:00:43]} 8. cxd4 {[%emt 0:00:02]} Bb4+ {[%emt 0:00:28]} 9. Bd2 {[%emt 0:00:02]} Bxd2+ {[%emt 0:00:27]} 10. Qxd2 {[%emt 0:00:02]} O-O {[%emt 0:00:35]} 11. Bc4 {[%emt 0:00:28]} Nd7 {[%emt 0:00:54]} 12. O-O {[%emt 0:00:30]} b6 {[%emt 0:00:32]} 13. Rfe1 {[%emt 0:02:40]} Bb7 {[%emt 0:00:37]} 14. Rad1 {[%emt 0:00:35]} Qf6 {[%emt 0:05:44]} 15. e5 {[%emt 0:10:56]} Qg6 {[%emt 0:02:12]} 16. Nh4 {[%emt 0:03:49]} Qg4 {[%emt 0:09:24]} 17. g3 {[%emt 0:00:38]} Rfd8 {[%emt 0:02:49]} 18. Be2 {[%emt 0:14:38]} Qh3 {[%emt 0:00:28]} 19. f3 {[%emt 0:14:29]} Nxe5 {[%emt 0:05:02]} 20. Qe3 {[%emt 0:00:09]} Nxf3+ {[%emt 0:11:35]} 21. Bxf3 {[%emt 0:02:08]} Bxf3 {[%emt 0:00:45]} 22. Qxf3 {[%emt 0:01:50]} Rac8 {[%emt 0:01:17]} 23. d5 {[%emt 0:16:08]} Rc2 {[%emt 0:07:10]} 24. Ng2 {[%emt 0:02:35]} exd5 {[%emt 0:04:36]} 25. Qxd5 {[%emt 0:05:56]} Rf8 {[%emt 0:01:02]} 26. Re7 {[%emt 0:00:35]} Rc5 {[%emt 0:06:43]} 27. Qf3 {[%emt 0:03:02]} Rh5 {[%emt 0:01:23]} 28. Rxf7 {[%emt 0:03:06]} Rc8 {[%emt 0:00:10]} 29. Rc7 {[%emt 0:07:04]} 1-0